Cogmind - Beta 17 @@@ ROGUE MODE // 2026.07.22 @ 00:21:06 Player: kim.jet.wav Result: Smashed by cave-in Performance ------------- Evolutions (0) 0 Regions Visited (0) 0 Robots Destroyed (4) 20 Value Destroyed (120) 120 Prototype IDs (0) 0 Alien Tech Used (0) 0 Bonus (0) 0 TOTAL SCORE: 140 Bonus ------- None Cogmind --------- Core Integrity 0/250 Matter 300/300 Energy 100/100 System Corruption 12% Temperature Warm (186) Movement Treading (160) Location -11/Scrapyard Parts ------- > --- POWER (1) -------- (None) > --- PROPULSION (2) --- Light Treads > --- UTILITY (2) ------ (None) > --- WEAPON (2) ------- (None) > --- INVENTORY (5) ---- Light Ion Engine Aluminum Leg Compact Wheel Compact Wheel Assault Rifle Peak State ------------ > --- POWER ------------ Light Ion Engine > --- PROPULSION ------- Aluminum Leg Aluminum Leg > --- UTILITY ---------- Improved Terrain Scanner Seismic Detector > --- WEAPON ----------- Medium Laser Small Laser > --- INVENTORY -------- Light Ion Engine Small Storage Unit [Rating: 9] Favorites ----------- Power Light Ion Engine Engine Light Ion Engine Propulsion Aluminum Leg Treads Light Treads Leg Aluminum Leg Utility Seismic Detector Device Seismic Detector Storage Small Storage Unit Weapon Small Laser Energy Gun Small Laser Ballistic Gun Assault Rifle Special Weapon Mining Laser Build | -11 ------- Run | Yrd Slots Evolved . | . Power . | . Propulsion . | . Utility . | . Weapon . | . Parts Attached 13 | 13 Power 2 | 2 Engine 2 | 2 Core . | . Reactor . | . Propulsion 4 | 4 Treads 2 | 2 Leg 2 | 2 Wheel . | . Hover . | . Flight . | . Utility 3 | 3 Device 2 | 2 Storage 1 | 1 Processor . | . Hackware . | . Protection . | . Artifact . | . Weapon 4 | 4 Energy Gun 2 | 2 Energy Cannon . | . Ballistic Gun 1 | 1 Ballistic Cannon . | . Launcher . | . Special Weapon 1 | 1 Impact Weapon . | . Slashing Weapon . | . Piercing Weapon . | . Special Melee Weapon . | . Unidentified Prototypes . | . Parts Lost 9 | 9 Power 1 | 1 Propulsion 2 | 2 Utility 3 | 3 Weapon 3 | 3 Highest Loss Streak 4 | 4 To Critical Strikes . | . Average Backups 2 | 2 Power . | . Propulsion 1 | 1 Utility . | . Weapon . | . Tool/Special . | . Unused Backups 2 | 2 Power . | . Propulsion 2 | 2 Utility . | . Weapon . | . Tool/Special . | . Average Slot Usage (%) . | . Peak Build Rating 9 | 9 Average Rating 7 | 7 On Entrance . | . Avg Prop Armor Cover (%) 11 | 11 Naked Turns . | . Heaviest Build 12 | 12 Greatest Support 40 | 40 Greatest Overweight (x) 3 | 3 Average Overweight (x) . | . Largest Inventory Capacity 8 | 8 Average Capacity 6 | 6 Most Carried 5 | 5 Average Carried 2 | 2 Final Capacity 5 | 5 Final Carried 5 | 5 Class Distribution -------------------- None Dominant Class ---------------- None Resources | -11 ----------- Run | Yrd Matter Collected 340 | 340 Remotely . | . Salvage Created 43 | 43 Parts 6 | 6 Haulers Intercepted . | . Recyclers Shooed 1 | 1 Parts Field Recycled . | . Retrieved Matter . | . Parts Self-Destructed . | . Prevented . | . Parts Restored . | . Kills | -11 ------- Run | Yrd Combat Hostiles Destroyed 2 | 2 Guns 2 | 2 Classes Destroyed 2 | 2 Tunneler 2 | 2 Demolisher 2 | 2 Best Kill Streak 2 | 2 Combat Bots Only 2 | 2 Max Kills in Single Turn 1 | 1 Gunslinging . | . Exploded . | . Melee . | . Uniques/NPCs Destroyed . | . Combat | -11 -------- Run | Yrd Hostile Shots Fired 12 | 12 Missed 2 | 2 Hits 10 | 10 Projectile 10 | 10 AOE 10 | 10 Damage Taken 1261 | 1261 Core 262 | 262 Absorbed by Shields . | . Core Remaining (%) . | . Volleys Fired 63 | 63 Largest 2 | 2 Hottest 100 | 100 Shots Fired 77 | 77 Gun 33 | 33 Cannon . | . Launcher . | . Special 44 | 44 Kinetic . | . Thermal 77 | 77 Explosive . | . Electromagnetic . | . Robot Hit Streak 7 | 7 Robot Miss Streak 4 | 4 Penetration Max . | . Secondary Targets . | . Shots Hit Robots 21 | 21 Core Hits 7 | 7 Critical Kills . | . Critical Parts Destroyed . | . Critical Strikes 2 | 2 Burn 2 | 2 Melee Attacks . | . Impact . | . Slashing . | . Piercing . | . Sneak Attacks . | . Combat Hostiles . | . Follow-up Attacks . | . Damage Inflicted 247 | 247 Guns 247 | 247 Cannons . | . Explosions . | . Melee . | . Ramming . | . Kinetic . | . Thermal 247 | 247 Explosive . | . Electromagnetic . | . Impact . | . Slashing . | . Piercing . | . Highest Corruption 8 | 8 Average Corruption 8 | 8 Corruption Purged . | . Corruption Blocked . | . Effects 5 | 5 Message Errors 2 | 2 Heat Flow Errors 1 | 1 Energy Discharges 1 | 1 Data Loss (minor) 1 | 1 Overload Shots . | . Overflow Damage . | . Projectiles . | . Explosions . | . Melee . | . Knockbacks . | . Impact . | . Kinetic . | . Secondary . | . Self-Inflicted Damage . | . Shots . | . Rammed . | . Targets Rammed . | . Kicked . | . Crushed . | . Highest Temperature 261 | 261 Average Temperature 85 | 85 Received Heat Transfer . | . Effects 4 | 4 Energy Bleed 2 | 2 Interference 2 | 2 Siege Activations . | . Martial Activations . | . Shielding Activations . | . Robots Disrupted . | . Combat Hostiles . | . Robots Corrupted . | . Combat Hostiles . | . Parts Fried . | . Impact Corruptions . | . Robots Melted . | . Combat Hostiles . | . Parts Melted . | . Heat Transferred 781 | 781 Parts Sabotaged . | . Parts Stolen . | . Parts Stripped . | . Power Chain Reactions . | . Alert | -11 ------- Run | Yrd Maximum Alert Level . | . Low Security (%) 100 | 100 Level 1 . | . Level 2 . | . Level 3 . | . Level 4 . | . Level 5 . | . High Security . | . Max Security . | . Peak Influence 39 | 39 Initial . | . Average 8 | 8 Influence Increases 60 | 60 Destroy 0b10 Robot/C 40 | 40 Destroy 0b10 Robot/NC 10 | 10 Destroy Leader 10 | 10 Influence Decreases 60 | 60 Time Decay 28 | 28 Lost Part 32 | 32 Squads Dispatched . | . Investigation . | . Extermination . | . Reinforcement . | . Assault . | . Garrison . | . Intercept . | . Searches Triggered . | . Construction Impeded . | . Haulers Reinforced . | . Active Scanning Responses . | . Cargo Convoy Interrupts . | . Stealth | -11 --------- Run | Yrd Distress Signals . | . Communications Jammed . | . Distress Signals . | . Times Spotted 2 | 2 Peak Tracking Total 2 | 2 Tactical Retreats . | . Traps | -11 ------- Run | Yrd Traps Triggered . | . Indirectly . | . Trap Hack Attempts . | . Triggered . | . Disarmed . | . Reprogrammed . | . Reused . | . Traps Extracted . | . Installed . | . Triggered . | . Machines | -11 ---------- Run | Yrd Machines Disabled . | . Max in Single Turn . | . Machines Repaired . | . Machines Dismantled . | . Machines Sabotaged . | . Overloaded Fab Kills . | . Hacking | -11 --------- Run | Yrd Machines Accessed . | . Terminals . | . Fabricators . | . Repair Stations . | . Recycling Units . | . Scanalyzers . | . Garrison Access . | . Total Hacks . | . Successful . | . Failed . | . Catastrophic . | . Database Lockouts . | . Manual . | . Terminals . | . Fabricators . | . Repair Stations . | . Recycling Units . | . Scanalyzers . | . Garrison Access . | . Terminal Hacks . | . Fabricator Hacks . | . Repair Station Hacks . | . Recycling Unit Hacks . | . Scanalyzer . | . Garrison Access Hacks . | . Unauthorized Hacks . | . Terminals . | . Fabricators . | . Repair Stations . | . Recycling Units . | . Scanalyzers . | . Garrison Access . | . Data Cores Recovered . | . Used . | . Hacking Detections . | . Full Trace Events . | . Feedback Events . | . Feedback Blocked . | . Robot Schematics Acquired . | . Robots Built . | . Authchips . | . Time . | . Total Robot Build Rating . | . Part Schematics Acquired . | . Parts Built . | . Authchips . | . Time . | . Total Part Build Rating . | . Part Studies Acquired . | . Parts Repaired . | . Time . | . Parts Recycled . | . Recycled Matter . | . Retrieved Matter . | . Retrieved Components . | . Parts Scanalyzed . | . Part Schematics Acquired . | . Parts Damaged . | . Bothacking | -11 ------------ Run | Yrd Used RIF Installer . | . Robots Hacked . | . Non-combat . | . Combat . | . Robot Hacks Applied . | . Relay Couplers Released . | . Fabnet Peak Effective % . | . Robots Rewired . | . Allies Hacked . | . Hacks Repelled . | . Allies | -11 -------- Run | Yrd Total Allies . | . Largest Group . | . Highest-Rated Group . | . Highest-Rated Ally . | . Total Orders . | . Ally Attacks . | . Total Damage . | . Kills . | . Allies Corrupted . | . Allies Melted . | . Intel | -11 ------- Run | Yrd Active Infowar (turns) 6320 | 6320 Terrain 3861 | 3861 Seismic 6320 | 6320 Robot Analysis Total . | . Derelict Logs Recovered . | . Drone Launches . | . Drone Recoveries . | . Exploration | -11 ------------- Run | Yrd Turns Passed 6576 | 6576 Spaces Moved 1719 | 1719 Core 14 | 14 Treads 309 | 309 Legs 1396 | 1396 Wheels . | . Hover . | . Flight . | . Fastest Speed 50 | 50 Average Speed 127 | 127 Slowest Speed 200 | 200 Overloaded Moves . | . Propulsion Burnouts . | . Robots Hopped . | . Potential Cave-ins 18 | 18 Cave-ins Triggered 8 | 8 Exploration Rate (%) 57 | 57 Regions Visited . Branch Regions . Pre-discovered Areas . | . Known Exits Taken . | . Unknown Exits Taken . | . Scrap Searched . | . Spaces Dug 18 | 18 Terrain Destroyed 32 | 32 Melee . | . Projectile 32 | 32 AOE . | . Terrain Rammed . | . Walls Destroyed . | . Machines Disabled . | . Actions | -11 --------- Run | Yrd Total 5934 | 5934 Wait 4131 | 4131 Move 1719 | 1719 Hop . | . Pick Up 5 | 5 Fast Attach 10 | 10 Attach 2 | 2 Detach 2 | 2 Swap 2 | 2 Drop . | . Fire 63 | 63 Melee . | . Ram . | . Kick . | . Crush . | . Escape Stasis . | . Rewire . | . Trap . | . Miscellaneous . | . Route ------- -11/Scrapyard (discovered 1 exit: [*Mat]) History --------- Turn | Location | Event 19 | -11/Scrapyard | Discovered new exit (range 16) 3730 | -11/Scrapyard | Assembled infested the area 3984 | -11/Scrapyard | Lost 3 parts (1n1u1w) 6405 | -11/Scrapyard | Crushed by falling debris 6411 | -11/Scrapyard | Crushed by falling debris 6411 | -11/Scrapyard | Core integrity fell below 50% 6423 | -11/Scrapyard | Crushed by falling debris 6423 | -11/Scrapyard | Core integrity fell below 20% 6436 | -11/Scrapyard | Lost 4 parts (1p1u2w) 6449 | -11/Scrapyard | Crushed by falling debris 6453 | -11/Scrapyard | Crushed by falling debris 6532 | -11/Scrapyard | Crushed by falling debris 6534 | -11/Scrapyard | Crushed by falling debris 6578 | -11/Scrapyard | Crushed by falling debris 6578 | -11/Scrapyard | Smashed by cave-in Last Messages --------------- 06423_ The unstable cave ceiling collapses. 06423_ Crushed by falling debris. 06440_ DMP0=DUZHPJDK#6EB9I/0UYQZCCI< 06449_ The unstable cave ceiling collapses. 06449_ Crushed by falling debris. 06453_ The unstable cave ceiling collapses. 06453_ Crushed by falling debris. 06478_ GP7JJM1Z>GKRNFC WHSWG9BY1FGNP,P 3P 06495_ System corrupted: Component data lost. 06532_ The unstable cave ceiling collapses. 06532_ Crushed by falling debris. 06534_ The unstable cave ceiling collapses. 06534_ Crushed by falling debris. 06574_ System corrupted: Heat flow error (+286). 06578_ The unstable cave ceiling collapses. 06578_ Crushed by falling debris. 06578_ Sml. Storage Unit destroyed. 06578_ System corrupted by crushing effect (+3). 06578_ Lgt. Treads destroyed. 06578_ System corrupted by crushing effect (+1). Map ----- +----------------------------------------------------+ | | | | | | | | | | | | | | | | | | | | | | | | | | | | | | | | | | | | | | | | | | | | | | | | | ?????????????????????## ###????????????? | | ?????????????????????####@#????????????? | | ?????????????????????# ####????????????? | | ????#????????????????########??????????? | | ??????#???????#?????## # # ###????????? | | ?????#?#????????????# # #????????? | | ??????????????#????## " #????????? | | ?###?##??????????### " #????????? | | ??#?##????#?????## " #????????? | | ???##########???# ###????????? | | ??#?# ##????## # " #??????????? | | ##### ####?# ## #??????????? | | # ##?#### # ###??????????? | | # #??# #### ###???????????? | | ## # #?## #????????????? | | ?# ##?# #????????????? | | ## ########### # ###??????????? | | ## ## #???????#??? | | # ## # # # #??????????? | | # ## ##??????????? | | # ## # ## # ###?#????????? | | ## # ###### #???????????? | | ## ## ### # ####???#???????? | | # ## # #??#?#????????? | | # # # ## # #????????#????? | | # ### #### ### #?????????????? | +----------------------------------------------------+ Best States ------------- Heat Dissipation 25 Energy Generation 10 Energy Capacity 125 Matter Stores 300 Matter Capacity 300 Sight Range 16 Terrain Scan Range 16 Terrain Scan Density 10 Evasion (%) 55 Recoil Reduction 2 Item Schematics ----------------- None Robot Schematics ------------------ None Fabricated ------------ Nothing Repaired ---------- Nothing Studied --------- None Alien Tech Used ----------------- None Achievements -------------- None Challenges ------------ None Game ------ Seed ColdPlasmaWall Manual? 0 Play Time 00:33:12 Cumulative 70.5 hours Start 2026.07.22 @ 00:02:46 End 2026.07.22 @ 00:21:06 Sessions 0 Manual Loads 0 Difficulty Rogue Special Mode None Game No. 251 Rogue 251 Adventurer 0 Explorer 0 Win Type - Total 0 Types 0/0/0/0/0/0/0/0/0/0 Lore% 34 Gallery% 22 Achievement% 19 Wizard Run 0 Options --------- Layout 0 ASCII 1 Keyboard 1 Movement Numpad Keybinds 1 Fullscreen 1 Font 18/X11 Map View 76x50 Zoom Use 0% Tactical HUD 1 Map Filters NONE Filters NONE Steam 1 RUN: 6160baf7-0c36-4fc9-a228-540d9bcd72f1